bitfinex/quotes_SOLUSD_20241022
["timestamp","ask_amount","ask_price","bid_price","bid_amount"]
[1729610979033,5.9533,167.98,167.91,10.88463215]
[1729610981056,5.9533,167.98,167.92,23.776884]
[1729610981231,6.1922964,168.05,167.92,23.776884]
[1729610981557,5.9506,168.05,167.95,20.0]
[1729610981727,0.628041,168.07,167.97,20.0]
[1729610981926,0.628041,168.07,167.96,23.776884]
[1729610981927,5.9513,168.03,167.96,23.776884]
[1729610982352,5.951,168.04,167.94,23.776884]
[1729610982727,5.951,168.04,167.96,23.776884]
[1729610983055,0.628041,168.07,167.96,23.776884]
[1729610983230,0.628041,168.07,167.99,20.0]
[1729610983430,0.628041,168.07,168.0,23.776884]
[1729610985040,5.9503,168.06,167.96,20.0]
[1729610985335,5.9503,168.06,167.99,23.776884]
[1729610986236,0.628041,168.07,167.99,23.776884]
[1729610986439,6.578041,168.07,167.99,23.776884]
[1729610987240,5.9505,168.06,167.96,20.0]
[1729610987558,5.9507,168.05,167.96,20.0]
[1729610987849,5.9507,168.05,167.97,23.776884]
[1729610988564,6.577941,168.07,167.97,40.79598889]
[1729610989954,0.628041,168.07,167.97,40.79598889]
[1729610990347,0.628041,168.07,167.99,23.776884]
[1729610991934,6.578141,168.07,167.99,23.776884]
[1729610992133,6.578141,168.07,167.98,20.0]
[1729610993357,0.628041,168.07,167.98,20.0]
[1729610993562,5.9505,168.06,167.98,20.0]
[1729610993876,5.9506,168.05,167.95,43.776884]
[1729610994157,0.628041,168.07,167.93,21.9083]
[1729610994158,5.9519,168.02,167.93,21.9083]
[1729610994368,5.9525,168.0,167.93,15.3844]
[1729610994857,21.0434,168.05,167.93,15.3844]
[1729610995046,5.952,168.01,167.93,15.3844]
[1729610995249,5.9514,168.03,167.93,15.3844]
[1729610995963,5.9514,168.03,167.94,23.776884]
[1729610997067,5.9519,168.02,167.94,23.776884]
[1729610999365,6.1669,168.05,167.94,23.776884]
[1729610999366,5.951,168.04,167.94,23.776884]
[1729610999864,6.1669,168.05,167.94,23.776884]
[1729611000169,5.9513,168.03,167.94,23.776884]
[1729611000366,6.1669,168.05,167.94,23.776884]
[1729611000574,5.9512,168.04,167.94,23.776884]
[1729611001071,0.628041,168.07,167.97,43.776884]
[1729611002474,0.628041,168.07,168.0,16.0856]
[1729611002673,0.628041,168.07,168.01,43.776884]
[1729611002971,0.628041,168.07,168.03,20.0]
[1729611003148,0.628041,168.07,168.03,43.776884]
[1729611010903,0.628041,168.07,168.03,20.0]
[1729611012275,0.628041,168.07,168.04,23.776884]
[1729611014277,0.628041,168.07,168.04,34.65615234]
[1729611015965,0.628041,168.07,168.03,43.776884]
[1729611018079,0.628041,168.07,168.06,54.65615234]
[1729611019270,0.628041,168.07,168.0,16.0856]
[1729611019474,0.628041,168.07,168.04,43.776884]
[1729611021271,6.578141,168.07,167.96,15.0944]
[1729611021473,0.628041,168.07,167.97,17.00119063]
[1729611021957,0.628041,168.07,168.03,17.00119063]
[1729611022886,0.628041,168.07,168.05,23.776884]
[1729611026689,0.628041,168.07,168.06,43.776884]
[1729611026895,0.628041,168.07,168.06,60.77807463]
[1729611027770,12.1201,168.19,168.08,20.0]
[1729611028071,12.1201,168.19,168.05,70.0]
[1729611028072,12.1201,168.19,168.11,23.776884]
[1729611028485,5.9463,168.17,168.1,23.776884]
[1729611028689,6.1742,168.19,168.05,60.77807463]
[1729611028994,5.946,168.18,168.08,43.776884]
[1729611029287,6.1742,168.19,168.09,17.00119063]
[1729611029584,6.1742,168.19,168.1,43.776884]
[1729611029805,5.9461,168.18,168.1,43.776884]
[1729611029996,5.9461,168.18,168.1,23.776884]
[1729611030198,5.9471,168.15,168.1,23.776884]
[1729611030504,5.9468,168.16,168.1,23.776884]
[1729611031608,12.12,168.19,168.09,23.776884]
[1729611031774,6.1742,168.19,168.11,23.776884]
[1729611032290,12.1198,168.19,168.11,23.776884]
[1729611032889,6.1742,168.19,168.11,23.776884]
[1729611033090,13.237041,168.24,168.14,15.3011]
[1729611033416,13.237041,168.24,168.15,23.776884]
[1729611033792,13.237041,168.24,168.14,15.3011]
[1729611033793,13.237041,168.24,168.17,23.776884]
[1729611034097,7.292941,168.24,168.18,20.0]
[1729611034316,7.292941,168.24,168.19,23.776884]
[1729611034685,7.292941,168.24,168.15,20.0]
[1729611034882,0.628041,168.24,168.2,23.776884]
[1729611035785,0.628041,168.24,168.18,23.776884]
[1729611035991,0.628041,168.24,168.19,20.0]
[1729611036377,0.628041,168.24,168.18,23.776884]
[1729611037482,0.628041,168.24,168.2,23.776884]
[1729611039898,0.628041,168.24,168.21,20.0]
[1729611040093,0.628041,168.24,168.22,23.776884]
[1729611042387,0.628041,168.24,168.21,23.776884]
[1729611043717,0.628041,168.24,168.14,15.3011]
[1729611043887,5.9447,168.22,168.1,15.671]
[1729611044193,5.9447,168.22,168.11,17.00119063]
[1729611044702,0.628041,168.24,168.11,17.00119063]
[1729611045004,5.9442,168.23,168.11,17.00119063]
[1729611045201,5.9442,168.23,168.12,43.776884]
[1729611045413,6.2659,168.19,168.05,92.8674]
[1729611045715,6.2659,168.19,168.06,17.00119063]
[1729611045885,5.947,168.15,168.05,16.2852]
[1729611046284,5.9474,168.15,168.05,16.2852]
[1729611046787,21.1304,168.19,168.05,16.2852]
[1729611046987,5.9467,168.17,168.06,23.776884]
[1729611047289,5.9467,168.17,168.08,23.776884]
[1729611047811,21.1304,168.19,168.08,23.776884]
[1729611047812,5.9471,168.15,168.08,23.776884]
[1729611048982,21.1304,168.19,168.08,23.776884]
[1729611049215,5.9467,168.16,168.08,23.776884]
[1729611049397,21.1304,168.19,168.06,20.0]
[1729611049590,5.9471,168.15,168.06,20.0]
[1729611050094,5.9474,168.14,168.05,17.00119063]
[1729611050282,5.9476,168.14,168.02,25.07378261]
[1729611050488,5.9478,168.13,168.02,25.07378261]
[1729611050921,5.9482,168.12,168.02,25.07378261]
[1729611051587,5.9477,168.14,168.03,20.0]
[1729611052303,5.9477,168.14,168.05,20.0]
[1729611052592,6.2659,168.19,168.06,23.776884]
[1729611052795,5.9472,168.15,168.06,23.776884]
[1729611054109,20.0,168.18,168.06,23.776884]
[1729611054309,5.9463,168.17,168.06,23.776884]
[1729611055106,5.9463,168.17,168.07,20.0]
[1729611055309,5.9463,168.17,168.08,23.776884]
[1729611055607,6.2659,168.19,168.08,23.776884]
[1729611055786,5.9468,168.16,168.08,23.776884]
[1729611056917,6.2659,168.19,168.08,23.776884]
[1729611057125,5.9463,168.18,168.08,23.776884]
[1729611058325,5.9464,168.17,168.08,23.776884]
[1729611058886,6.2659,168.19,168.1,17.00119063]
[1729611059191,6.2659,168.19,168.09,36.4235]
[1729611059192,6.6141,168.23,168.15,23.776884]
[1729611059593,12.5583,168.23,168.15,23.776884]
[1729611060009,6.6141,168.23,168.15,23.776884]
[1729611060198,5.9449,168.22,168.15,23.776884]
[1729611060997,12.5584,168.23,168.15,23.776884]
[1729611061203,6.6141,168.23,168.15,23.776884]
[1729611062302,12.5584,168.23,168.15,23.776884]
[1729611062507,12.5584,168.23,168.12,20.0]
[1729611062508,6.6141,168.23,168.12,20.0]
[1729611063117,5.9459,168.19,168.1,20.0]
[1729611063621,6.6141,168.23,168.1,20.0]
[1729611063789,5.9459,168.19,168.11,23.776884]
[1729611064213,6.6141,168.23,168.12,20.0]
[1729611064521,5.946,168.18,168.12,20.0]
[1729611065809,20.0,168.22,168.1,23.776884]
[1729611066107,0.1,168.19,168.05,15.9388]
[1729611066303,5.9478,168.13,168.05,15.9388]
[1729611067323,5.9475,168.14,168.05,15.9388]
[1729611067820,5.9475,168.14,168.07,23.776884]
[1729611068001,20.0,168.17,168.07,23.776884]
[1729611068201,5.9449,168.21,168.12,20.0]
[1729611068526,5.9446,168.22,168.15,23.776884]
[1729611068915,6.6141,168.23,168.15,23.776884]
[1729611069521,6.6141,168.23,168.15,40.77807463]
[1729611069908,0.628041,168.24,168.17,23.776884]
[1729611071828,6.572141,168.24,168.17,23.776884]
[1729611072322,0.628041,168.24,168.17,23.776884]
[1729611072523,0.628041,168.24,168.16,23.776884]
[1729611072722,0.628041,168.24,168.18,23.776884]
[1729611073932,0.628041,168.24,168.2,23.776884]
[1729611074131,0.628041,168.24,168.21,20.0]
[1729611074332,0.628041,168.24,168.22,23.776884]
[1729611074635,0.628041,168.24,168.23,20.0]
[1729611074839,0.628041,168.24,168.23,76.19367463]
[1729611075212,0.628041,168.24,168.23,59.192484]
[1729611077058,0.628041,168.24,168.23,43.776884]
[1729611077838,0.628041,168.24,168.2,20.0]
[1729611078035,0.628041,168.24,168.18,20.0]
[1729611079140,0.628041,168.24,168.2,20.0]
[1729611079442,0.628041,168.24,168.21,23.776884]
[1729611085122,0.628041,168.24,168.23,43.776884]
[1729611087046,0.628041,168.24,168.23,60.77807463]
[1729611089340,0.628041,168.24,168.23,76.54417463]
[1729611092950,5.9388,168.39,168.26,70.0]
[1729611093243,5.9386,168.39,168.29,43.776884]
[1729611093922,13.021441,168.41,168.29,113.776884]
[1729611094431,13.021341,168.41,168.29,43.776884]
[1729611094841,5.9382,168.4,168.29,43.776884]
[1729611095547,5.94,168.35,168.29,20.0]
[1729611095724,5.94,168.35,168.26,17.00119063]
[1729611095725,5.9382,168.4,168.27,20.0]
[1729611095927,5.9395,168.37,168.27,20.0]
[1729611096153,5.9382,168.4,168.27,20.0]
[1729611096449,5.9388,168.39,168.27,20.0]
[1729611096845,5.939,168.38,168.29,20.0]
[1729611097145,5.939,168.38,168.31,20.0]
[1729611097457,7.083341,168.41,168.32,23.776884]
[1729611097847,13.021241,168.41,168.32,23.776884]
[1729611098353,7.083341,168.41,168.32,23.776884]
[1729611098543,13.021341,168.41,168.32,23.776884]
[1729611099240,7.083341,168.41,168.33,20.0]
[1729611099539,7.083341,168.41,168.35,20.0]
[1729611099731,7.083341,168.41,168.36,23.776884]
[1729611103155,13.021341,168.41,168.36,23.776884]
[1729611104046,7.083341,168.41,168.32,43.776884]
[1729611104237,5.9386,168.39,168.32,43.776884]
[1729611105860,5.9383,168.4,168.32,43.776884]
[1729611107148,13.021241,168.41,168.32,43.776884]
[1729611107745,5.9383,168.4,168.32,43.776884]
[1729611109257,7.083341,168.41,168.32,43.776884]
[1729611109439,7.083341,168.41,168.31,16.3069]
[1729611109440,5.9395,168.37,168.28,17.00119063]
[1729611110178,7.083341,168.41,168.3,17.00119063]
[1729611110179,0.628041,168.41,168.3,17.00119063]
[1729611110459,6.565941,168.41,168.32,17.00119063]
[1729611110636,6.565941,168.41,168.33,20.0]
[1729611110839,6.565941,168.41,168.34,23.776884]
[1729611111335,5.9385,168.4,168.34,23.776884]
[1729611111563,5.9387,168.39,168.33,20.0]
[1729611111742,5.9387,168.39,168.32,23.776884]
[1729611111943,5.9387,168.39,168.33,20.0]
[1729611113939,5.9388,168.39,168.33,20.0]
[1729611114140,0.628041,168.41,168.27,16.0324]
[1729611114447,5.9392,168.38,168.28,17.00119063]
[1729611115434,6.1333,168.39,168.29,43.776884]
[1729611115654,5.9393,168.37,168.29,43.776884]
[1729611116366,5.9395,168.37,168.29,43.776884]
[1729611116654,6.1333,168.39,168.29,43.776884]
[1729611116859,5.9395,168.37,168.29,43.776884]
[1729611117252,6.1333,168.39,168.29,43.776884]
[1729611117253,5.9391,168.38,168.29,43.776884]
[1729611120357,6.1333,168.39,168.29,43.776884]
[1729611120560,12.0719,168.39,168.29,43.776884]
[1729611120762,0.628041,168.41,168.32,43.776884]
[1729611121064,0.628041,168.41,168.34,43.776884]
[1729611121260,6.565941,168.41,168.34,43.776884]
[1729611122564,5.9384,168.4,168.32,20.0]
[1729611122762,5.9384,168.4,168.33,23.776884]
[1729611122942,5.9384,168.4,168.34,20.0]
[1729611123142,5.9384,168.4,168.32,23.776884]
[1729611123349,5.9384,168.4,168.33,20.0]
[1729611124278,5.9384,168.4,168.34,23.776884]
[1729611125349,0.628041,168.41,168.34,23.776884]
[1729611126154,0.628041,168.41,168.36,23.776884]
[1729611138266,0.628041,168.41,168.36,34.61587474]
[1729611139583,0.628041,168.41,168.37,20.0]
[1729611139883,0.628041,168.41,168.38,23.776884]
[1729611140686,0.628041,168.41,168.4,34.61587474]
[1729611140995,0.628041,168.41,168.4,54.61587474]
[1729611142261,0.628041,168.41,168.4,43.776884]
[1729611144666,0.628041,168.41,168.4,60.081384]
[1729611145169,0.628041,168.41,168.4,36.3045]
[1729611146189,0.628041,168.41,168.37,16.92563537]
[1729611147182,0.628041,168.41,168.4,23.776884]
[1729611147374,0.628041,168.41,168.4,43.776884]
[1729611149781,0.628041,168.41,168.37,36.92563537]
[1729611150285,0.628041,168.41,168.37,16.92563537]
[1729611150879,0.628041,168.41,168.4,23.776884]
[1729611151390,6.1687,168.57,168.4,23.776884]
[1729611151565,5.9344,168.51,168.44,43.776884]
[1729611152469,5.9349,168.5,168.44,43.776884]
[1729611152675,5.9343,168.51,168.44,43.776884]
[1729611152974,5.9346,168.51,168.44,43.776884]
[1729611153788,5.9338,168.53,168.44,43.776884]
[1729611154368,14.8323,168.55,168.44,43.776884]
[1729611154573,12.34416758,168.57,168.44,43.776884]
[1729611154882,5.9339,168.53,168.44,43.776884]
[1729611155283,5.9331,168.55,168.46,43.776884]
[1729611155469,12.34416758,168.57,168.46,43.776884]
[1729611155675,5.9334,168.54,168.46,43.776884]
[1729611156587,6.1687,168.57,168.46,43.776884]
[1729611156792,5.9332,168.55,168.46,43.776884]
[1729611157673,6.1687,168.57,168.48,43.776884]
[1729611158690,12.1009,168.57,168.48,43.776884]
[1729611158874,5.9322,168.57,168.5,43.776884]
[1729611159476,0.628041,168.58,168.5,43.776884]
[1729611159971,5.9335,168.54,168.46,43.776884]
[1729611160689,5.9328,168.56,168.46,43.776884]
[1729611161184,5.9328,168.56,168.47,16.92563537]
[1729611161385,5.9328,168.56,168.48,43.776884]
[1729611162292,6.560241,168.58,168.48,43.776884]
[1729611162484,5.9322,168.57,168.5,43.776884]
[1729611164779,6.559941,168.58,168.5,54.59903573]
[1729611165100,6.559941,168.58,168.52,10.82215173]
[1729611165283,0.628041,168.58,168.53,23.776884]
[1729611165788,0.628041,168.58,168.54,30.82215173]
[1729611169797,0.628041,168.58,168.54,20.0]
[1729611170805,0.628041,168.58,168.53,23.776884]
[1729611171799,0.628041,168.58,168.54,20.0]
[1729611171980,0.628041,168.58,168.54,30.82215173]
[1729611172175,0.628041,168.58,168.56,20.0]
[1729611172381,0.628041,168.58,168.57,43.776884]
[1729611174083,0.628041,168.58,168.57,54.59903573]
[1729611181487,6.4675,168.74,168.6,43.776884]
[1729611181686,6.4675,168.74,168.66,10.82215173]
[1729611181887,12.394,168.74,168.66,10.82215173]
[1729611182483,12.394,168.74,168.68,10.82215173]
[1729611182484,6.4675,168.74,168.68,10.82215173]
[1729611182681,15.698141,168.75,168.7,20.0]
[1729611183184,0.628041,168.75,168.71,10.82215173]
[1729611183686,0.628041,168.75,168.7,43.776884]
[1729611183892,0.628041,168.75,168.7,20.0]
[1729611184096,0.628041,168.75,168.67,10.82215173]
[1729611184298,5.9263,168.74,168.67,10.82215173]
[1729611184494,0.628041,168.75,168.67,10.82215173]
[1729611184803,6.553941,168.75,168.67,10.82215173]
[1729611185484,0.628041,168.75,168.68,23.776884]
[1729611185695,0.628041,168.75,168.69,20.0]
[1729611185901,0.628041,168.75,168.71,20.0]
[1729611186290,0.628041,168.75,168.72,23.776884]
[1729611186888,0.628041,168.75,168.74,23.776884]
[1729611187283,0.628041,168.75,168.74,43.776884]
[1729611189085,0.628041,168.75,168.74,60.64424613]
[1729611189704,0.628041,168.75,168.74,130.64424613]
[1729611190705,12.82567412,168.9,168.74,130.64424613]
[1729611190706,5.921,168.89,168.79,20.0]
[1729611190911,6.6641,168.9,168.8,60.64424613]
[1729611191081,6.6641,168.9,168.84,23.776884]
[1729611191784,12.5847,168.9,168.84,23.776884]
[1729611192104,0.628041,168.92,168.86,23.776884]
[1729611192105,6.548041,168.92,168.86,23.776884]
[1729611192285,5.9203,168.91,168.85,20.0]
[1729611192808,0.628041,168.92,168.89,20.0]
[1729611192989,0.628041,168.92,168.88,23.776884]
[1729611193190,0.628041,168.92,168.83,20.0]
[1729611193510,0.628041,168.92,168.85,20.0]
[1729611193881,5.9204,168.91,168.83,20.0]
[1729611194206,0.628041,168.92,168.83,20.0]
[1729611194586,5.9208,168.9,168.82,20.0]
[1729611195715,0.628041,168.92,168.78,6.2996]
[1729611195916,5.9221,168.86,168.77,16.86736213]
[1729611196288,5.9225,168.85,168.76,16.454]
[1729611196512,5.9226,168.85,168.76,16.454]
[1729611196690,14.8016,168.9,168.76,16.454]
[1729611196893,0.2,168.9,168.76,16.454]
[1729611197109,5.9233,168.83,168.76,16.454]
[1729611197293,5.924,168.81,168.73,16.86736213]
[1729611197494,5.924,168.81,168.71,70.0]
[1729611197495,15.9748,168.81,168.66,86.454]
[1729611197710,5.9241,168.8,168.67,16.86736213]
[1729611197894,5.9253,168.77,168.67,16.86736213]
[1729611198218,16.0748,168.81,168.66,33.32136213]
[1729611198414,5.927,168.72,168.66,33.32136213]
[1729611198619,5.9265,168.74,168.66,16.454]
[1729611198918,20.0,168.8,168.66,33.32136213]
[1729611199104,5.9255,168.76,168.66,33.32136213]
[1729611199697,5.9255,168.76,168.67,20.0]
[1729611200405,5.9249,168.78,168.69,20.0]
[1729611200614,5.9249,168.78,168.71,20.0]
[1729611200813,15.9748,168.81,168.71,20.0]
[1729611200814,15.9748,168.81,168.74,23.776884]
[1729611201200,21.8986,168.81,168.73,43.776884]
[1729611202925,5.9247,168.79,168.73,43.776884]
[1729611203810,15.9748,168.81,168.73,43.776884]
[1729611204023,5.9242,168.8,168.73,43.776884]
[1729611205007,15.9748,168.81,168.66,33.32136213]
[1729611205416,5.9262,168.74,168.66,33.32136213]
[1729611205912,5.9262,168.74,168.62,2.11434771]
[1729611205913,5.9273,168.71,168.62,15.9898]
[1729611206227,5.9273,168.71,168.62,32.85716213]
[1729611206411,6.232,168.75,168.62,32.85716213]
[1729611206612,5.928,168.69,168.62,15.9898]
[1729611206935,5.9284,168.68,168.62,15.9898]
[1729611208226,5.9284,168.68,168.61,23.776884]
[1729611208613,5.9284,168.68,168.6,16.86736213]
[1729611209015,5.9287,168.67,168.58,31.88096213]
[1729611209218,5.9287,168.67,168.59,20.0]
[1729611210630,5.9047,168.67,168.6,23.776884]
[1729611210831,5.9047,168.67,168.61,20.0]
[1729611212018,5.9047,168.67,168.59,20.0]
[1729611212405,5.9273,168.71,168.6,23.776884]
[1729611212642,5.9283,168.69,168.61,20.0]
[1729611212932,5.9284,168.68,168.61,20.0]
[1729611213936,5.9286,168.68,168.61,20.0]
[1729611214837,5.9286,168.68,168.59,20.0]
[1729611215416,43.976884,168.71,168.58,15.0136]
[1729611215611,5.9298,168.64,168.57,23.776884]
[1729611215812,43.876884,168.68,168.56,16.86736213]
[1729611216050,0.2,168.67,168.54,16.0503]
[1729611216242,43.776884,168.68,168.52,16.86736213]
[1729611216243,16.5715,168.65,168.52,16.86736213]
[1729611216533,16.5715,168.65,168.5,16.86736213]
[1729611216534,5.9319,168.58,168.5,16.86736213]
[1729611216740,6.4014,168.61,168.47,70.0]
[1729611216935,5.9321,168.58,168.48,16.86736213]
[1729611217846,5.9321,168.58,168.49,23.776884]
[1729611218244,6.4014,168.61,168.5,36.86736213]
[1729611218544,6.4014,168.61,168.54,20.0]
[1729611218850,12.3323,168.61,168.54,20.0]
[1729611219955,6.4014,168.61,168.54,20.0]
[1729611220151,12.3322,168.61,168.54,20.0]
[1729611220638,6.4014,168.61,168.54,20.0]
[1729611220839,5.9313,168.6,168.54,20.0]
[1729611221068,5.9315,168.59,168.53,20.0]
[1729611221520,6.4014,168.61,168.53,20.0]
[1729611221521,5.932,168.58,168.53,20.0]
[1729611221723,5.9327,168.56,168.51,20.0]
[1729611221933,6.4014,168.61,168.51,20.0]
[1729611221934,5.9321,168.58,168.51,20.0]
[1729611222339,5.9311,168.6,168.51,20.0]
[1729611222547,5.9311,168.6,168.5,16.86736213]
[1729611222548,6.4014,168.61,168.54,16.86736213]
[1729611222745,16.4715,168.65,168.5,70.0]
[1729611222746,5.9298,168.64,168.56,16.86736213]
[1729611222946,5.9298,168.64,168.57,23.776884]
[1729611223246,5.9298,168.64,168.58,20.0]
[1729611223436,5.9294,168.65,168.58,20.0]
[1729611223841,6.304,168.66,168.58,20.0]
[1729611224038,5.9298,168.64,168.58,20.0]
[1729611226134,5.9301,168.63,168.58,20.0]
[1729611230337,5.9294,168.65,168.58,20.0]
[1729611231065,5.929,168.67,168.6,36.86736213]
[1729611231260,28.63932882,168.69,168.61,23.776884]
[1729611231441,16.5423,168.69,168.61,23.776884]
[1729611231846,22.4704,168.69,168.61,23.776884]
[1729611232853,5.9284,168.68,168.61,23.776884]
[1729611233356,5.9294,168.65,168.59,20.0]
[1729611233559,5.9301,168.64,168.56,16.86736213]
[1729611233766,5.9301,168.64,168.57,20.0]
[1729611234144,14.8209,168.68,168.57,20.0]
[1729611234339,5.9287,168.67,168.56,16.86736213]
[1729611234548,5.9292,168.66,168.56,16.86736213]
[1729611234836,16.5423,168.69,168.58,16.86736213]
[1729611235059,5.9292,168.66,168.58,16.86736213]
[1729611235243,5.9292,168.66,168.59,23.776884]
[1729611236760,16.5423,168.69,168.56,16.86736213]
[1729611236965,5.9312,168.6,168.52,16.86736213]
[1729611237435,5.9316,168.59,168.52,16.86736213]
[1729611237739,5.9316,168.59,168.5,16.6529]
[1729611237740,5.9324,168.57,168.5,33.52026213]
[1729611238938,5.9324,168.57,168.51,43.776884]
[1729611240454,31.0457,168.62,168.51,43.776884]
[1729611240756,5.9319,168.58,168.51,43.776884]
[1729611241948,5.9329,168.56,168.5,16.6529]
[1729611242142,5.9329,168.56,168.49,23.776884]
[1729611242343,20.1,168.61,168.44,84.47325792]
[1729611242344,20.0,168.61,168.46,33.05726213]
[1729611242544,6.5411,168.57,168.46,16.1899]
[1729611243067,0.2,168.55,168.37,15.7851]
[1729611243246,5.9354,168.48,168.38,16.86736213]
[1729611243956,0.1,168.53,168.38,16.86736213]
[1729611244270,5.9358,168.47,168.38,16.86736213]
[1729611245548,14.835,168.52,168.38,16.86736213]
[1729611245549,14.935,168.52,168.4,20.0]
[1729611245867,14.935,168.52,168.39,20.0]
[1729611245868,5.936,168.47,168.39,20.0]
[1729611246091,6.1724,168.51,168.38,16.86736213]
[1729611246092,6.2724,168.51,168.38,16.86736213]
[1729611246251,6.1724,168.51,168.38,16.86736213]
[1729611246453,5.936,168.47,168.38,16.86736213]
[1729611246857,5.936,168.47,168.39,23.776884]
[1729611247248,5.936,168.47,168.4,20.0]
[1729611247867,6.1724,168.51,168.4,20.0]
[1729611247868,5.9361,168.46,168.4,20.0]
[1729611250865,6.1724,168.51,168.37,15.7851]
[1729611250866,0.1,168.49,168.37,15.7851]
[1729611251091,5.9374,168.43,168.37,15.7851]
[1729611251370,5.9369,168.44,168.37,15.7851]
[1729611251567,5.9372,168.43,168.37,15.7851]
[1729611251863,30.2093,168.48,168.37,15.7851]
[1729611251864,15.3708,168.48,168.37,15.7851]
[1729611252047,5.9364,168.46,168.37,15.7851]
[1729611252247,5.9364,168.46,168.38,43.776884]
[1729611253453,5.9366,168.45,168.38,43.776884]
[1729611257167,6.17614085,168.5,168.45,43.776884]
[1729611257374,6.4574,168.55,168.45,43.776884]
[1729611257375,6.4574,168.55,168.47,23.776884]
[1729611258458,12.3904,168.55,168.47,23.776884]
[1729611258657,5.9335,168.54,168.46,16.86736213]
[1729611259080,5.934,168.52,168.45,35.2363]
[1729611259288,6.5574,168.55,168.43,20.0]
[1729611259456,5.9354,168.48,168.42,20.0]
[1729611261577,5.9345,168.51,168.42,20.0]
[1729611261960,5.934,168.52,168.43,23.776884]
[1729611263492,20.1,168.54,168.42,20.0]
[1729611263654,5.9351,168.49,168.42,20.0]
[1729611265170,16.0137,168.49,168.37,27.0826745]
[1729611265473,16.0137,168.49,168.36,15.9952]
[1729611265474,5.9368,168.44,168.36,15.9952]
[1729611267278,5.9368,168.44,168.37,20.0]
[1729611268388,5.9362,168.46,168.37,20.0]
[1729611269185,6.5938,168.48,168.38,23.776884]
[1729611269364,6.17651769,168.5,168.42,23.776884]
[1729611269564,5.9346,168.51,168.42,23.776884]
[1729611269865,12.391,168.53,168.45,20.0]
[1729611270567,6.4571,168.53,168.45,20.0]
[1729611270776,12.3908,168.53,168.45,20.0]
[1729611271091,5.935,168.5,168.4,27.0826745]
[1729611271266,6.4571,168.53,168.41,43.776884]
[1729611271578,5.934,168.52,168.41,43.776884]
[1729611271768,5.9351,168.49,168.41,43.776884]
[1729611272980,6.4571,168.53,168.41,43.776884]
[1729611273185,2.3919,168.53,168.41,43.776884]
[1729611274091,5.9344,168.51,168.41,43.776884]
[1729611274272,5.934,168.52,168.44,20.0]
[1729611274883,5.9344,168.51,168.44,20.0]
[1729611275275,5.9348,168.5,168.44,20.0]
[1729611275586,5.9353,168.49,168.41,20.0]
[1729611275964,23.776884,168.52,168.41,20.0]
[1729611276182,2.3919,168.53,168.41,20.0]
[1729611276383,5.9344,168.51,168.41,20.0]
[1729611276679,5.9344,168.51,168.43,20.0]
[1729611276865,5.9349,168.5,168.43,20.0]
[1729611277380,5.9349,168.5,168.41,20.0]
[1729611278270,5.9366,168.45,168.38,6.1985]
[1729611278471,5.9366,168.45,168.36,43.0778745]
[1729611278681,5.9371,168.44,168.36,43.0778745]
[1729611278977,5.9375,168.43,168.36,15.9952]
[1729611279389,5.9374,168.43,168.36,15.9952]
[1729611281882,22.7982,168.46,168.36,15.9952]
[1729611281883,5.9375,168.42,168.36,15.9952]
[1729611282063,5.9375,168.42,168.35,20.0]